fUST/lending_fUST_20260318
["ID","MTS","AMOUNT","RATE_DAILY","PERIOD"]
[408511907,1773783038281,-500.0,5.599e-05,2]
[408511909,1773783038291,-500.0,5.599e-05,2]
[408511911,1773783038300,-252.98833261,5.599e-05,2]
[408511913,1773783038309,-500.0,5.599e-05,2]
[408511915,1773783038318,-500.0,5.599e-05,2]
[408511917,1773783038327,-500.0,5.599e-05,2]
[408511919,1773783038336,-471.35191317,5.599e-05,2]
[408511921,1773783038346,-4895.17181695,5.6e-05,2]
[408511923,1773783038355,-10968.08201906,5.6e-05,2]
[408511925,1773783038365,-12068.41092528,5.6e-05,2]
[408511927,1773783038375,-9786.97658406,5.6e-05,2]
[408511929,1773783038384,-500.0,5.603e-05,2]
[408511931,1773783038393,-160.0,5.612e-05,2]
[408511933,1773783038403,-126304.1501071,5.762e-05,2]
[408511935,1773783038412,-8839.7074935,5.762e-05,2]
[408511936,1773783038421,-1000.0,5.924e-05,2]
[408511938,1773783038431,-1000.0,5.924e-05,2]
[408511940,1773783038440,-1000.0,5.924e-05,2]
[408511942,1773783038450,-1000.0,5.924e-05,2]
[408511945,1773783038460,-1000.0,5.924e-05,2]
[408511946,1773783038469,-1000.0,5.924e-05,2]
[408511948,1773783038479,-1000.0,5.924e-05,2]
[408511950,1773783038488,-1000.0,5.924e-05,2]
[408511952,1773783038497,-1000.0,5.924e-05,2]
[408511954,1773783038507,-1000.0,5.924e-05,2]
[408511956,1773783038516,-1000.0,5.924e-05,2]
[408511958,1773783038525,-1000.0,5.924e-05,2]
[408511960,1773783038534,-1000.0,5.924e-05,2]
[408511962,1773783038544,-1000.0,5.924e-05,2]
[408511964,1773783038553,-1000.0,5.924e-05,2]
[408511966,1773783038563,-1000.0,5.924e-05,2]
[408511968,1773783038572,-956.0659256,5.924e-05,2]
[408511969,1773783038581,-1585.092413,6.126e-05,2]
[408511972,1773783038591,-1000.0,6.151e-05,2]
[408511973,1773783038601,-1585.092413,6.364e-05,2]
[408511975,1773783038610,-28182.2652408,6.492e-05,2]
[408511977,1773783038619,-1585.092413,6.602e-05,2]
[408511979,1773783038629,-209.457,6.634e-05,2]
[408511981,1773783038639,-6288.3133565,6.655e-05,2]
[408511983,1773783038648,-500.0,6.698e-05,2]
[408511985,1773783038657,-161.67104768,6.771e-05,2]
[408511987,1773783038666,-1972.4053487,6.801e-05,2]
[408511989,1773783038675,-1585.092413,6.84e-05,2]
[408511991,1773783038686,-2185.0,6.856e-05,2]
[408511993,1773783038695,-1394.0,6.856e-05,2]
[408511995,1773783038704,-640.0,6.856e-05,2]
[408511997,1773783038714,-438.0,6.856e-05,2]
[408511998,1773783038725,-183.0,6.856e-05,2]
[408512000,1773783038734,-500.0,6.938e-05,2]
[408512002,1773783038746,-151.0,6.938e-05,2]
[408512004,1773783038757,-181.08010149,6.938e-05,2]
[408512006,1773783038766,-500.0,6.938e-05,2]
[408512008,1773783038775,-500.0,6.938e-05,2]
[408512010,1773783038784,-500.0,6.938e-05,2]
[408512012,1773783038795,-209.40437684,6.938e-05,2]
[408512014,1773783038804,-500.0,6.938e-05,2]
[408512016,1773783038813,-500.0,6.938e-05,2]
[408512018,1773783038823,-500.0,6.938e-05,2]
[408512020,1773783038832,-500.0,6.938e-05,2]
[408512022,1773783038841,-500.0,6.938e-05,2]
[408512024,1773783038850,-500.0,6.938e-05,2]
[408512026,1773783038860,-500.0,6.938e-05,2]
[408512028,1773783038869,-162.380719,6.938e-05,2]
[408512030,1773783038878,-500.0,6.938e-05,2]
[408512031,1773783038887,-168.3888056,6.938e-05,2]
[408512033,1773783038896,-500.0,6.938e-05,2]
[408512035,1773783038906,-173.85185981,6.938e-05,2]
[408512037,1773783038915,-500.0,6.938e-05,2]
[408512039,1773783038924,-500.0,6.938e-05,2]
[408512041,1773783038933,-500.0,6.938e-05,2]
[408512043,1773783038942,-500.0,6.938e-05,2]
[408512045,1773783038951,-2150.738,6.938e-05,2]
[408512047,1773783038960,-500.0,6.938e-05,2]
[408512049,1773783038970,-537.6845,6.938e-05,2]
[408512051,1773783038978,-440.1031213,7.033e-05,2]
[408512053,1773783038988,-289.97965594,7.051e-05,2]
[408512055,1773783038997,-1158.75870514,7.184e-05,2]
[408512057,1773783039006,-397.26083652,7.184e-05,2]
[408512059,1773783039018,-500.126,7.267e-05,2]
[408512060,1773783039030,-2230.315306,7.486e-05,2]
[408512061,1773783039040,-155.7074763,7.486e-05,2]
[408512062,1773783039049,-339.0,7.965e-05,2]
[408512063,1773783039059,-166.0,7.965e-05,2]
[408512064,1773783039068,-500.0,7.973e-05,2]
[408512065,1773783039076,-500.0,7.973e-05,2]
[408512066,1773783039086,-500.0,7.973e-05,2]
[408512067,1773783039095,-500.0,7.973e-05,2]
[408512068,1773783039104,-538404.24921972,8e-05,2]
[408512183,1773783040641,-4369.70325648,8e-05,2]
[408512200,1773783043102,-1050.59287838,8e-05,2]
[408512201,1773783043213,-10469.36062953,8e-05,2]
[408512202,1773783043225,-1226.05301822,8e-05,2]
[408512203,1773783043274,-4740.16662601,8e-05,2]
[408512204,1773783043285,-2272.94772162,8e-05,2]
[408512205,1773783043297,-445.37030241,8e-05,2]
[408512209,1773783046210,-1257.87188007,8e-05,2]
[408512210,1773783046222,-45586.94808639,8e-05,2]
[408512211,1773783046233,-1873.52235704,8e-05,2]
[408512212,1773783046244,-346.38830132,8e-05,2]
[408512213,1773783046255,-5661.95488558,8e-05,2]
[408512214,1773783046389,-14942.98633211,8e-05,2]
[408512247,1773784232300,-1259.0,5.056e-05,2]
[408512249,1773784232310,-5000.0,5.107e-05,2]
[408512251,1773784232320,-221.6802446,5.762e-05,2]
[408512253,1773784232330,-500.0,7.143e-05,2]
[408512255,1773784232339,-500.0,7.143e-05,2]
[408512257,1773784232349,-1200.0,7.162e-05,2]
[408512259,1773784232358,-189.0,7.163e-05,2]
[408512261,1773784232367,-300.0,7.163e-05,2]
[408512263,1773784232377,-300.0,7.163e-05,2]
[408512265,1773784232387,-5482.6197554,7.165e-05,2]
[408512588,1773784238279,-526.55085562,7.163e-05,2]
[408512589,1773784238290,-500.0,7.163e-05,2]
[408512590,1773784238299,-500.0,7.163e-05,2]
[408512591,1773784238309,-500.0,7.163e-05,2]
[408512592,1773784238319,-500.0,7.163e-05,2]
[408512593,1773784238328,-500.0,7.163e-05,2]
[408512594,1773784238337,-500.0,7.163e-05,2]
[408512595,1773784238346,-500.0,7.163e-05,2]
[408512596,1773784238355,-500.0,7.163e-05,2]
[408512597,1773784238365,-500.0,7.163e-05,2]
[408512598,1773784238374,-500.0,7.163e-05,2]
[408512599,1773784238383,-500.0,7.163e-05,2]
[408512600,1773784238393,-500.0,7.163e-05,2]
[408512601,1773784238402,-500.0,7.163e-05,2]
[408512602,1773784238412,-500.0,7.163e-05,2]
[408512603,1773784238421,-500.0,7.163e-05,2]
[408512604,1773784238431,-500.0,7.163e-05,2]
[408512605,1773784238444,-500.0,7.163e-05,2]
[408512606,1773784238453,-500.0,7.163e-05,2]
[408512607,1773784238463,-500.0,7.163e-05,2]
[408512608,1773784238472,-500.0,7.163e-05,2]
[408512609,1773784238482,-500.0,7.163e-05,2]
[408512610,1773784238491,-500.0,7.163e-05,2]
[408512611,1773784238500,-495.76414575,7.163e-05,2]
[408512612,1773784238510,-500.0,7.163e-05,2]
[408512613,1773784238520,-500.0,7.163e-05,2]
[408512614,1773784238529,-500.0,7.163e-05,2]
[408512615,1773784238538,-500.0,7.163e-05,2]
[408512616,1773784238548,-500.0,7.163e-05,2]
[408512617,1773784238557,-500.0,7.163e-05,2]
[408512618,1773784238566,-500.0,7.163e-05,2]
[408512619,1773784238576,-500.0,7.163e-05,2]
[408512620,1773784238585,-500.0,7.163e-05,2]
[408512621,1773784238594,-500.0,7.163e-05,2]
[408512622,1773784238604,-500.0,7.163e-05,2]
[408512623,1773784238613,-500.0,7.163e-05,2]
[408512624,1773784238623,-500.0,7.163e-05,2]
[408512625,1773784238632,-500.0,7.163e-05,2]
[408512626,1773784238642,-500.0,7.163e-05,2]
[408512627,1773784238651,-500.0,7.163e-05,2]
[408512628,1773784238661,-500.0,7.163e-05,2]
[408512629,1773784238671,-500.0,7.163e-05,2]
[408512630,1773784238680,-500.0,7.163e-05,2]
[408512631,1773784238689,-500.0,7.163e-05,2]
[408512632,1773784238699,-500.0,7.163e-05,2]
[408512633,1773784238708,-500.0,7.163e-05,2]
[408512634,1773784238717,-500.0,7.163e-05,2]
[408512635,1773784238727,-500.0,7.163e-05,2]
[408512636,1773784238736,-500.0,7.163e-05,2]
[408512637,1773784238746,-500.0,7.163e-05,2]
[408512638,1773784238755,-500.0,7.163e-05,2]
[408512639,1773784238764,-500.0,7.163e-05,2]
[408512640,1773784238773,-500.0,7.163e-05,2]
[408512641,1773784238782,-500.0,7.163e-05,2]
[408512642,1773784238791,-500.0,7.163e-05,2]
[408512643,1773784238801,-500.0,7.163e-05,2]
[408512644,1773784238810,-500.0,7.163e-05,2]
[408512645,1773784238820,-500.0,7.163e-05,2]
[408512646,1773784238829,-500.0,7.163e-05,2]
[408512647,1773784238838,-500.0,7.163e-05,2]
[408512648,1773784238847,-500.0,7.163e-05,2]
[408512649,1773784238857,-500.0,7.163e-05,2]
[408512650,1773784238867,-500.0,7.163e-05,2]
[408512651,1773784238876,-500.0,7.163e-05,2]
[408512652,1773784238886,-500.0,7.163e-05,2]
[408512653,1773784238895,-500.0,7.163e-05,2]
[408512654,1773784238905,-500.0,7.163e-05,2]
[408512655,1773784238915,-500.0,7.163e-05,2]
[408512656,1773784238925,-283.88990878,7.163e-05,2]
[408512657,1773784238934,-500.0,7.163e-05,2]
[408512658,1773784238944,-500.0,7.163e-05,2]
[408512659,1773784238954,-500.0,7.163e-05,2]
[408512660,1773784238963,-500.0,7.163e-05,2]
[408512661,1773784238973,-500.0,7.163e-05,2]
[408512662,1773784238983,-500.0,7.163e-05,2]
[408512663,1773784238992,-500.0,7.163e-05,2]
[408512664,1773784239002,-500.0,7.163e-05,2]
[408512665,1773784239012,-500.0,7.163e-05,2]
[408512666,1773784239022,-500.0,7.163e-05,2]
[408512667,1773784239031,-500.0,7.163e-05,2]
[408512668,1773784239040,-500.0,7.163e-05,2]
[408512669,1773784239050,-500.0,7.163e-05,2]
[408512670,1773784239059,-500.0,7.163e-05,2]
[408512671,1773784239069,-500.0,7.163e-05,2]
[408512672,1773784239083,-500.0,7.163e-05,2]
[408512673,1773784239092,-500.0,7.163e-05,2]
[408512674,1773784239102,-500.0,7.163e-05,2]
[408512675,1773784239111,-500.0,7.163e-05,2]
[408512676,1773784239122,-500.0,7.163e-05,2]
[408512677,1773784239131,-500.0,7.163e-05,2]
[408512678,1773784239141,-500.0,7.163e-05,2]
[408512679,1773784239151,-450.0,7.163e-05,2]
[408512680,1773784239160,-500.0,7.163e-05,2]
[408512681,1773784239169,-500.0,7.163e-05,2]
[408512682,1773784239179,-500.0,7.163e-05,2]
[408512683,1773784239187,-500.0,7.163e-05,2]
[408512684,1773784239197,-194.04651796,7.163e-05,2]
[408512685,1773784239206,-500.0,7.163e-05,2]
[408512686,1773784239216,-500.0,7.163e-05,2]
[408512687,1773784239225,-500.0,7.163e-05,2]
[408512688,1773784239235,-500.0,7.163e-05,2]
[408512689,1773784239244,-13029.62171031,7.165e-05,2]
[408512698,1773784240723,-2329.1941798,7.165e-05,2]
[408512699,1773784240735,-250.37909506,7.165e-05,2]
[408512700,1773784240747,-496.70406981,7.165e-05,2]
[408512701,1773784240784,-3012.91813574,7.165e-05,2]
[408512711,1773784243487,-7953.51744111,7.165e-05,2]
[408512712,1773784243502,-116102.5695158,7.165e-05,2]
[408512713,1773784243517,-2625.30129943,7.165e-05,2]
[408512714,1773784243528,-729.67770619,7.165e-05,2]
[408512719,1773784246552,-1757.56293966,7.165e-05,2]
[408512720,1773784246721,-3618.27598454,7.165e-05,2]
[408512723,1773784862179,-4019.40121622,6.628e-05,2]
[408512753,1773785432417,-1125.98825827,6.24e-05,2]
[408512755,1773785432428,-367.38335282,6.24e-05,2]
[408512757,1773785432439,-501.0,6.24e-05,2]
[408512760,1773785432452,-3005.62838891,6.24e-05,2]
[408512762,1773785432462,-233.48610172,6.303e-05,2]
[408512763,1773785432471,-510.0,6.303e-05,2]
[408512765,1773785432480,-645.121,6.728e-05,2]
[408512767,1773785432489,-1200.0,6.742e-05,2]
[408512769,1773785432499,-500.0,6.743e-05,2]
[408512772,1773785432508,-54.45284755,6.743e-05,2]
[408512775,1773785432519,-445.54715245,6.743e-05,2]
[408512778,1773785432528,-500.0,6.743e-05,2]
[408512781,1773785432537,-500.0,6.761e-05,2]
[408512783,1773785432547,-215.804,6.761e-05,2]
[408512785,1773785432556,-500.0,6.761e-05,2]
[408512787,1773785432565,-468.14220703,6.761e-05,2]
[408512789,1773785432573,-500.0,6.761e-05,2]
[408512791,1773785432582,-500.0,6.761e-05,2]
[408512793,1773785432591,-500.0,6.761e-05,2]
[408512794,1773785432600,-500.0,6.761e-05,2]
[408512796,1773785432609,-500.0,6.761e-05,2]
[408512798,1773785432618,-500.0,6.761e-05,2]
[408512800,1773785432628,-500.0,6.761e-05,2]
[408512802,1773785432637,-500.0,6.761e-05,2]
[408512804,1773785432646,-500.0,6.761e-05,2]
[408512806,1773785432655,-500.0,6.761e-05,2]
[408512808,1773785432664,-500.0,6.761e-05,2]
[408512810,1773785432673,-476.93103741,6.761e-05,2]
[408512811,1773785432682,-500.0,6.761e-05,2]
[408512813,1773785432691,-500.0,6.761e-05,2]
[408512817,1773785432955,-500.0,6.761e-05,2]
[408512818,1773785432965,-250.0,6.761e-05,2]
[408512819,1773785432974,-500.0,6.761e-05,2]
[408512820,1773785432983,-500.0,6.761e-05,2]
[408512821,1773785432992,-500.0,6.761e-05,2]
[408512822,1773785433002,-500.0,6.761e-05,2]
[408512823,1773785433011,-500.0,6.761e-05,2]
[408512824,1773785433020,-500.0,6.761e-05,2]
[408512825,1773785433030,-500.0,6.761e-05,2]
[408512826,1773785433039,-500.0,6.761e-05,2]
[408512827,1773785433048,-500.0,6.761e-05,2]
[408512828,1773785433058,-500.0,6.761e-05,2]
[408512829,1773785433067,-500.0,6.761e-05,2]
[408512830,1773785433076,-500.0,6.761e-05,2]
[408512831,1773785433085,-500.0,6.761e-05,2]
[408512832,1773785433094,-500.0,6.761e-05,2]
[408512833,1773785433103,-500.0,6.761e-05,2]
[408512834,1773785433118,-500.0,6.761e-05,2]
[408512835,1773785433128,-500.0,6.761e-05,2]
[408512836,1773785433137,-50000.0,6.762e-05,2]
[408512837,1773785433146,-17637.81180939,6.763e-05,2]
[408512838,1773785433172,-500.0,6.761e-05,2]
[408512839,1773785433182,-173.41,6.761e-05,2]
[408512840,1773785433193,-326.59,6.761e-05,2]
[408512841,1773785433203,-320.54072574,6.763e-05,2]
[408512866,1773785438462,-500.0,6.761e-05,2]
[408512868,1773785438473,-500.0,6.761e-05,2]
[408512870,1773785438482,-321.8647845,6.761e-05,2]
[408512872,1773785438494,-178.1352155,6.761e-05,2]
[408512874,1773785438503,-550.0,6.761e-05,2]
[408512875,1773785438512,-500.0,6.761e-05,2]
[408512877,1773785438521,-1867.92631763,6.763e-05,2]
[408512879,1773785438533,-746.26,6.763e-05,2]
[408512890,1773785438632,-1152.14854256,6.763e-05,2]
[408512982,1773785440924,-398.00552291,6.763e-05,2]
[408513004,1773785443604,-4640.01197933,6.763e-05,2]
[408513005,1773785443618,-435.0,6.763e-05,2]
[408513006,1773785443665,-4635.35155661,6.763e-05,2]
[408513015,1773785446491,-2170.56619972,6.695e-05,2]
[408513021,1773785686243,-200.0,0.00014779,120]
[408513022,1773785686386,-200.0,0.00015952,120]
[408513023,1773785686420,-851.31243703,0.00018141,120]
[408513024,1773785686576,-563.19058525,0.00018141,120]
[408513025,1773785686599,-200.0,0.00018235,120]
[408513026,1773785686621,-651.31243703,0.00018316,120]
[408513027,1773785686768,-400.0,0.00018316,120]
[408513028,1773785686790,-933.67332783,0.00018443,120]
[408513029,1773785687071,-480.82969445,0.00018443,120]
[408513030,1773785687093,-570.48274258,0.00018624,120]
[408513031,1773785687254,-480.82969445,0.00018624,120]
[408513032,1773785687412,-401.42171509,0.00018744,120]
[408513033,1773785687795,-200.0,0.00018744,120]
[408513034,1773785687950,-401.42171509,0.00018744,120]
[408513035,1773785688104,-200.0,0.00018744,120]
[408513036,1773785688506,-211.6595921,0.00018744,120]
[408513037,1773785688528,-200.0,0.00018745,120]
[408513038,1773785688550,-922.01373573,0.00018932,120]
[408513039,1773785688723,-129.2987013,0.00018932,120]
[408513040,1773785689015,-200.0,0.00019754,120]
[408513044,1773785863558,1204.37462653,0.0001975,120]
[408513088,1773786631594,-2763.75480364,5.779e-05,2]
[408513090,1773786631604,-503.0,5.779e-05,2]
[408513092,1773786631613,-331.92422052,5.837e-05,2]
[408513094,1773786631624,-2581.36439249,5.837e-05,2]
[408513096,1773786631635,-1415.29810358,5.837e-05,2]
[408513098,1773786631647,-671.41328341,5.837e-05,2]
[408513099,1773786631656,-647.49807584,6.015e-05,2]
[408513102,1773786631672,-552.50192416,6.015e-05,2]
[408513104,1773786631680,-1261.74868511,6.016e-05,2]
[408513106,1773786631690,-178.56211862,6.145e-05,2]
[408513108,1773786631699,-367.290956,6.193e-05,2]
[408513110,1773786631708,-178.56211861,6.335e-05,2]
[408513112,1773786631717,-189.0,6.366e-05,2]
[408513113,1773786631727,-300.0,6.366e-05,2]
[408513115,1773786631736,-300.0,6.366e-05,2]
[408513117,1773786631745,-300.0,6.366e-05,2]
[408513119,1773786631755,-1358.59320247,6.4e-05,2]
[408513121,1773786631765,-3107.55199068,6.4e-05,2]
[408513123,1773786631774,-551.59200856,6.4e-05,2]
[408513125,1773786631785,-925.33631496,6.4e-05,2]
[408513255,1773786637617,-5000.0,6.336e-05,2]
[408513256,1773786637627,-2305.70173787,6.4e-05,2]
[408513257,1773786637645,-3426.41195926,6.4e-05,2]
[408513258,1773786637657,-3445.091026,6.4e-05,2]
[408513259,1773786637666,-50000.0,6.4e-05,2]
[408513260,1773786637676,-367.290956,6.453e-05,2]
[408513261,1773786637686,-516.097,6.53e-05,2]
[408513262,1773786637695,-500.0,6.542e-05,2]
[408513263,1773786637706,-500.0,6.542e-05,2]
[408513264,1773786637716,-500.0,6.542e-05,2]
[408513265,1773786637726,-500.0,6.542e-05,2]
[408513266,1773786637735,-500.0,6.542e-05,2]
[408513267,1773786637745,-500.0,6.542e-05,2]
[408513268,1773786637755,-500.0,6.542e-05,2]
[408513269,1773786637765,-500.0,6.542e-05,2]
[408513271,1773786637774,-500.0,6.542e-05,2]
[408513272,1773786637784,-500.0,6.542e-05,2]
[408513273,1773786637793,-500.0,6.542e-05,2]
[408513274,1773786637803,-500.0,6.542e-05,2]
[408513275,1773786637812,-500.0,6.542e-05,2]
[408513276,1773786637825,-500.0,6.542e-05,2]
[408513277,1773786637835,-500.0,6.542e-05,2]
[408513278,1773786637845,-500.0,6.542e-05,2]
[408513279,1773786637855,-500.0,6.542e-05,2]
[408513280,1773786637865,-500.0,6.542e-05,2]
[408513281,1773786637875,-500.0,6.542e-05,2]
[408513282,1773786637885,-500.0,6.542e-05,2]
[408513283,1773786637894,-500.0,6.542e-05,2]
[408513284,1773786637904,-500.0,6.542e-05,2]
[408513285,1773786637913,-500.0,6.542e-05,2]
[408513286,1773786637922,-233.90475021,6.542e-05,2]
[408513287,1773786637932,-500.0,6.542e-05,2]
[408513288,1773786637941,-500.0,6.542e-05,2]
[408513289,1773786637951,-500.0,6.542e-05,2]
[408513290,1773786637960,-500.0,6.542e-05,2]
[408513291,1773786637969,-500.0,6.542e-05,2]
[408513292,1773786637979,-500.0,6.542e-05,2]
[408513293,1773786637989,-500.0,6.542e-05,2]
[408513294,1773786637998,-500.0,6.542e-05,2]
[408513295,1773786638008,-500.0,6.542e-05,2]
[408513296,1773786638017,-500.0,6.542e-05,2]
[408513297,1773786638026,-579.92739594,6.542e-05,2]
[408513298,1773786638036,-500.0,6.542e-05,2]
[408513299,1773786638045,-500.0,6.542e-05,2]
[408513300,1773786638055,-500.0,6.542e-05,2]
[408513301,1773786638065,-500.0,6.542e-05,2]
[408513302,1773786638075,-500.0,6.542e-05,2]
[408513303,1773786638084,-500.0,6.542e-05,2]
[408513304,1773786638094,-500.0,6.542e-05,2]
[408513305,1773786638104,-500.0,6.542e-05,2]
[408513306,1773786638115,-500.0,6.542e-05,2]
[408513307,1773786638125,-500.0,6.542e-05,2]
[408513308,1773786638135,-500.0,6.542e-05,2]
[408513309,1773786638145,-500.0,6.542e-05,2]
[408513310,1773786638155,-500.0,6.542e-05,2]
[408513311,1773786638164,-500.0,6.542e-05,2]
[408513312,1773786638174,-500.0,6.542e-05,2]
[408513313,1773786638183,-500.0,6.542e-05,2]
[408513314,1773786638192,-500.0,6.542e-05,2]
[408513315,1773786638202,-500.0,6.542e-05,2]
[408513316,1773786638211,-500.0,6.542e-05,2]
[408513317,1773786638221,-500.0,6.542e-05,2]
[408513318,1773786638231,-500.0,6.542e-05,2]
[408513319,1773786638240,-500.0,6.542e-05,2]
[408513320,1773786638250,-500.0,6.542e-05,2]
[408513321,1773786638259,-500.0,6.542e-05,2]
[408513322,1773786638268,-500.0,6.542e-05,2]
[408513323,1773786638277,-365.54256453,6.542e-05,2]
[408513324,1773786638287,-500.0,6.542e-05,2]
[408513325,1773786638296,-500.0,6.542e-05,2]
[408513326,1773786638305,-500.0,6.542e-05,2]
[408513327,1773786638314,-500.0,6.542e-05,2]
[408513328,1773786638324,-500.0,6.542e-05,2]
[408513329,1773786638333,-500.0,6.542e-05,2]
[408513330,1773786638343,-500.0,6.542e-05,2]
[408513331,1773786638353,-500.0,6.542e-05,2]
[408513332,1773786638362,-500.0,6.542e-05,2]
[408513333,1773786638372,-500.0,6.542e-05,2]
[408513334,1773786638382,-629.50472939,6.542e-05,2]
[408513335,1773786638394,-500.0,6.543e-05,2]
[408513336,1773786638404,-500.0,6.543e-05,2]
[408513337,1773786638413,-500.0,6.543e-05,2]
[408513338,1773786638423,-500.0,6.543e-05,2]
[408513339,1773786638432,-500.0,6.543e-05,2]
[408513340,1773786638441,-21405.10918309,6.562e-05,2]
[408513341,1773786638464,-1862.68028954,6.562e-05,2]
[408513343,1773786640383,-1125.84945892,6.562e-05,2]
[408513360,1773786642924,-2107.64814455,6.562e-05,2]
[408513361,1773786643147,-660.112334,6.562e-05,2]
[408513362,1773786643160,-32814.73603809,6.562e-05,2]
[408513376,1773786645854,-65366.68819595,6.562e-05,2]
[408513378,1773786645867,-3335.63203738,6.562e-05,2]
[408513380,1773786645878,-15722.34101647,6.562e-05,2]
[408513382,1773786645890,-16227.28187301,6.562e-05,2]
[408513400,1773786646088,-13515.00129249,6.443e-05,2]
[408513433,1773787831737,-3180.59923227,5.033e-05,2]
[408513435,1773787831751,-348.90023395,5.033e-05,2]
[408513438,1773787831762,-5000.0,5.084e-05,2]
[408513440,1773787831774,-187.632526,5.135e-05,2]
[408513441,1773787831784,-218.9308665,5.171e-05,2]
[408513443,1773787831796,-1200.0,5.767e-05,2]
[408513445,1773787831805,-300.0,5.884e-05,2]
[408513448,1773787831816,-300.0,5.884e-05,2]
[408513449,1773787831827,-324.6804912,5.885e-05,2]
[408513451,1773787831836,-500.0,6.223e-05,2]
[408513453,1773787831847,-500.0,6.223e-05,2]
[408513455,1773787831858,-500.0,6.223e-05,2]
[408513457,1773787831867,-21317.56646777,6.242e-05,2]
[408513459,1773787831877,-637.1005278,6.242e-05,2]
[408513461,1773787831887,-500.0,6.242e-05,2]
[408513463,1773787831895,-500.0,6.242e-05,2]
[408513465,1773787831906,-500.0,6.242e-05,2]
[408513467,1773787831915,-500.0,6.242e-05,2]
[408513469,1773787831924,-599.50472939,6.242e-05,2]
[408513471,1773787831933,-500.0,6.242e-05,2]
[408513473,1773787831942,-235.38589572,6.242e-05,2]
[408513475,1773787831954,-16041.08093341,6.243e-05,2]
[408513477,1773787831965,-670.94,6.243e-05,2]
[408513479,1773787831978,-1845.41454791,6.243e-05,2]
[408513481,1773787831990,-2723.02111255,6.243e-05,2]
[408513483,1773787832006,-565.876,6.243e-05,2]
[408513604,1773787837918,-31877.47375963,6.243e-05,2]
[408513607,1773787837930,-371.315,6.243e-05,2]
[408513622,1773787840331,-876.23651836,6.243e-05,2]
[408513632,1773787843082,-1041.66666667,6.243e-05,2]
[408513633,1773787843094,-1801.41093038,6.243e-05,2]
[408513649,1773787845947,-44382.52152808,6.243e-05,2]
[408513650,1773787846120,-9856.03930195,6.243e-05,2]
[408513668,1773788462725,-156.53,5.604e-05,2]
[408513699,1773789031859,-5000.0,5.003e-05,2]
[408513701,1773789031869,-454.0918351,5.053e-05,2]
[408513703,1773789031879,-300.0,5.704e-05,2]
[408513705,1773789031888,-300.0,5.704e-05,2]
[408513707,1773789031898,-300.0,5.704e-05,2]
[408513709,1773789031907,-300.0,5.704e-05,2]
[408513711,1773789031919,-396.9081649,5.704e-05,2]
[408513714,1773789031935,-803.0918351,5.704e-05,2]
[408513716,1773789031944,-192.82065508,5.705e-05,2]
[408513718,1773789031953,-4452.57974065,5.706e-05,2]
[408513720,1773789031963,-11986.36139802,5.706e-05,2]
[408513807,1773789037948,-223561.4743349,5.706e-05,2]
[408513811,1773789038014,-330.21954487,5.706e-05,2]
[408513821,1773789040412,-1061.69153269,5.706e-05,2]
[408513828,1773789040472,-1226.30066951,5.706e-05,2]
[408513830,1773789040483,-727.00840574,5.706e-05,2]
[408513878,1773789043289,-302.73848456,5.606e-05,2]
[408513879,1773789043300,-116.20009162,5.706e-05,2]
[408513889,1773789046052,-329317.07719272,5.706e-05,2]
[408513890,1773789046063,-12910.15621236,5.706e-05,2]
[408513891,1773789046075,-1416.53448938,5.706e-05,2]
[408513892,1773789046086,-366.0,5.706e-05,2]
[408513893,1773789046239,-16603.59276193,5.706e-05,2]
[408513903,1773790153694,500.0,0.00018744,120]
[408513917,1773790232074,-282.252,4.148e-05,2]
[408513924,1773790232145,-599.35241797,4.19e-05,2]
[408513996,1773790238171,-3024.84346949,4.19e-05,2]
[408513997,1773790238183,-1375.80411254,4.19e-05,2]
[408513998,1773790238193,-332.5738091,4.232e-05,2]
[408513999,1773790238202,-332.557118,5.258e-05,2]
[408514000,1773790238211,-332.557118,5.479e-05,2]
[408514001,1773790238221,-300.0,5.482e-05,2]
[408514002,1773790238230,-300.0,5.482e-05,2]
[408514003,1773790238239,-1200.0,5.482e-05,2]
[408514004,1773790238248,-500.0,5.483e-05,2]
[408514005,1773790238262,-500.0,5.483e-05,2]
[408514006,1773790238271,-500.0,5.483e-05,2]